Cogmind - Beta 9.2 @@@ ROGUE MODE // 2019.12.16 @ 20:01:43 Player: Joshua Result: Destroyed by G-47 Trooper with Particle Gun Performance ------------- Evolutions (2) 1000 Regions Visited (7) 1400 Robots Destroyed (70) 350 Value Destroyed (2599) 2599 Prototype IDs (26) 520 Alien Tech Used (0) 0 Bonus (1095) 1095 TOTAL SCORE: 6964 Bonus ------- High Alert Combat Kills 95 Entered Garrisons 200 Used RIF Installer 500 Aligned with FarCom 300 Cogmind --------- Core Integrity 0/550 Matter 248/300 Energy 125/125 System Corruption 4% Temperature Cool (9) Movement Rolling (130) Ox3 Location -8/Materials Parts ------- > --- POWER (1) -------- Light Ion Engine > --- PROPULSION (2) --- Armored Huge Wheel > --- UTILITY (6) ------ Large Storage Unit High-capacity Storage Unit High-capacity Storage Unit Visual Processing Unit Light Armor Plating Reflective Plating > --- WEAPON (2) ------- Heavy Assault Rifle Minigun > --- INVENTORY (26) --- Reinforced Ion Engine Light Nuclear Core Medium Treads Medium Treads Armored Huge Wheel Improved Heat Sink High-capacity Storage Unit High-capacity Matter Pod (200) Advanced Terrain Scan Processor Modified TNC Light Armor Plating Light Armor Plating Relay Coupler [NC] (29) Relay Coupler [NC] (25) Relay Coupler [ARC] (9) Relay Coupler [Swarmer] (36) Relay Coupler [Grunt] (23) Relay Coupler [Sentry] (21) Relay Coupler [Sentry] (20) Relay Coupler [Specialist] (23) Ion Cannon Heavy Assault Rifle Rocket Launcher Improved Datajack Hammer Peak State ------------ > --- POWER ------------ Improved Ion Engine > --- PROPULSION ------- Armored Huge Wheel > --- UTILITY ---------- Cooling System High-capacity Storage Unit High-capacity Storage Unit Visual Processing Unit Core Analyzer Hardened Light Armor Plating > --- WEAPON ----------- Improved Medium Laser Precision Beam Rifle > --- INVENTORY -------- Light Ion Engine Medium Treads Medium Treads Armored Huge Wheel Armored Huge Wheel Large Storage Unit High-capacity Storage Unit Advanced Terrain Scan Processor Modified TNC Transmission Jammer Beam Cannon Heavy Assault Rifle Heavy Assault Rifle Light Cannon Flak Cannon Rocket Launcher [Rating: 34] Favorites ----------- Power Light Ion Engine Engine Light Ion Engine Propulsion Armored Huge Wheel Treads Medium Treads Wheel Armored Huge Wheel Utility High-capacity Storage Unit Device Cooling System Storage High-capacity Storage Unit Processor Visual Processing Unit Protection Light Armor Plating Weapon Heavy Assault Rifle Energy Gun Precision Beam Rifle Energy Cannon Heavy Particle Cannon Ballistic Gun Heavy Assault Rifle Ballistic Cannon Light Cannon Launcher Rocket Launcher Build | -11 -10 -10 -10 -9 -8 -8 -8 ------- Run | Scr Mat Min Exi Min Mat Gar Mat Slots Evolved 4 | . . . . . 4 . . Power . | . . . . . . . . Propulsion . | . . . . . . . . Utility 4 | . . . . . 4 . . Weapon . | . . . . . . . . Parts Attached 75 | 6 7 4 1 . 12 25 20 Power 4 | 1 . . . . 1 2 . Engine 4 | 1 . . . . 1 2 . Core . | . . . . . . . . Reactor . | . . . . . . . . Propulsion 10 | 2 2 2 . . 1 2 1 Treads 5 | . 2 1 . . . 2 . Leg . | . . . . . . . . Wheel 5 | 2 . 1 . . 1 . 1 Hover . | . . . . . . . . Flight . | . . . . . . . . Utility 20 | 1 2 . 1 . 4 4 8 Device 6 | . . . . . 2 1 3 Storage 7 | 1 1 . 1 . 1 1 2 Processor 2 | . 1 . . . . 1 . Hackware . | . . . . . . . . Protection 5 | . . . . . 1 1 3 Artifact . | . . . . . . . . Weapon 41 | 2 3 2 . . 6 17 11 Energy Gun 9 | . . . . . 3 6 . Energy Cannon 5 | . . . . . . 1 4 Ballistic Gun 13 | 2 2 . . . . 3 6 Ballistic Cannon 6 | . 1 1 . . 1 3 . Launcher 8 | . . 1 . . 2 4 1 Special Weapon . | . . . . . . . . Impact Weapon . | . . . . . . . . Slashing Weapon . | . . . . . . . . Piercing Weapon . | . . . . . . . . Special Melee Weapon . | . . . . . . . . Unidentified Prototypes 2 | . . . . . 2 . . Parts Lost 17 | . . . . . 1 13 3 Power 3 | . . . . . 1 2 . Propulsion 1 | . . . . . . 1 . Utility 4 | . . . . . . 3 1 Weapon 9 | . . . . . . 7 2 Highest Loss Streak 8 | . . . . . 1 8 1 Average Slot Usage (%) 90 | . 90 100 100 100 83 88 92 Engine 9 | . 14 14 14 14 6 8 9 Treads 7 | . 9 16 14 14 3 5 6 Wheel 8 | . 18 11 14 14 9 6 5 Device 4 | . . . . . 13 4 3 Storage 20 | . 14 14 14 14 16 22 27 Processor 14 | . 5 14 14 14 9 16 16 Protection 4 | . . . . . 6 7 4 Energy Gun 4 | . . . . . 10 7 . Energy Cannon 1 | . . . . . . . 4 Ballistic Gun 9 | . 25 14 14 14 . 5 13 Ballistic Cannon 5 | . 2 12 14 14 7 4 . Naked Turns . | . . . . . . . . Heaviest Build 97 | 12 27 28 43 43 84 97 96 Greatest Support 56 | 32 32 46 16 23 28 56 56 Greatest Overweight (x) 4 | . 1 1 2 2 4 3 3 Average Overweight (x) 1 | . . . 1 1 2 2 2 Largest Inventory Capacity 32 | 6 12 10 12 12 20 26 32 Average Capacity 19 | 5 9 10 10 12 18 22 26 Most Carried 26 | 6 10 10 12 12 20 26 26 Average Carried 19 | 3 9 9 10 12 17 21 25 Final Capacity 26 | 6 10 10 12 12 20 26 26 Final Carried 26 | 6 10 10 12 12 20 26 26 Class Distribution -------------------- 48% | Hauler-Mutant 27% | Mutant 24% | Bothacker-Mutant Dominant Class ---------------- Mutant | -10/Materials Mutant | -10/Mines Mutant | -10/Exiles Mutant | -9/Mines Hauler-Mutant | -8/Materials Hauler-Mutant | -8/Garrison Bothacker-Mutant | -8/Materials Resources | -11 -10 -10 -10 -9 -8 -8 -8 ----------- Run | Scr Mat Min Exi Min Mat Gar Mat Matter Collected 2159 | 268 81 12 187 52 312 781 466 Remotely . | . . . . . . . . Salvage Created 2651 | 94 308 57 . 33 825 488 846 Parts 111 | 2 19 6 . 1 41 12 30 Haulers Intercepted 4 | . 1 . . . 2 . 1 Recyclers Shooed 2 | . . . . . 1 . 1 Parts Field Recycled . | . . . . . . . . Retrieved Matter . | . . . . . . . . Parts Self-Destructed . | . . . . . . . . Prevented . | . . . . . . . . Kills | -11 -10 -10 -10 -9 -8 -8 -8 ------- Run | Scr Mat Min Exi Min Mat Gar Mat Combat Hostiles Destroyed 56 | . 5 10 . 1 12 15 13 Guns 27 | . 5 2 . . 4 7 9 Cannons 11 | . . 2 . 1 3 2 3 AOE 17 | . . 6 . . 5 5 1 Classes Destroyed 12 | 1 4 1 . 1 3 1 1 Worker 1 | . . . . . 1 . . Builder 1 | . . . . . . . 1 Hauler 4 | . 1 . . . 2 . 1 Recycler 5 | 1 1 . . . 2 . 1 Watcher 3 | . 1 . . . 1 . 1 Swarmer 6 | . 3 3 . . . . . Grunt 30 | . 2 . . . 9 11 8 Brawler 4 | . . . . . 1 1 2 Duelist 2 | . . . . 1 . 1 . Sentry 6 | . . . . . 2 1 3 Behemoth 1 | . . . . . . 1 . Assembled 7 | . . 7 . . . . . Best Kill Streak 7 | 1 4 7 . 1 4 4 5 Combat Bots Only 7 | . 4 7 . 1 4 4 4 Max Kills in Single Turn 3 | 1 1 3 . 1 2 1 1 Gunslinging . | . . . . . . . . Exploded 3 | . . 3 . . 2 1 1 Melee . | . . . . . . . . Uniques/NPCs Destroyed . | . . . . . . . . Combat | -11 -10 -10 -10 -9 -8 -8 -8 -------- Run | Scr Mat Min Exi Min Mat Gar Mat Damage Taken 3487 | . 126 341 . 30 557 1417 1016 Core 680 | . 57 63 . . 197 231 132 Absorbed by Shields 15 | . . . . . . 15 . Core Remaining (%) 76 | 100 . . . 52 . . . Volleys Fired 215 | 2 21 11 . 6 48 65 62 Largest 2 | 2 2 2 . 2 2 2 2 Hottest 150 | 40 40 58 . 58 117 121 150 Shots Fired 396 | 4 42 19 . 12 90 112 117 Gun 255 | 4 42 8 . 6 55 56 84 Cannon 115 | . . 8 . 6 31 38 32 Launcher 26 | . . 3 . . 4 18 1 Special . | . . . . . . . . Kinetic 223 | 4 42 16 . 12 31 34 84 Thermal 147 | . . . . . 55 60 32 Explosive 26 | . . 3 . . 4 18 1 Electromagnetic . | . . . . . . . . Robot Hit Streak 18 | 3 9 4 . 4 14 16 18 Robot Miss Streak 5 | . 5 3 . 1 5 4 3 Penetration Max . | . . . . . . . . Secondary Targets 1 | . . . . . 1 . . Max Gunslinging Chain 1 | . . . . . 1 . . Shots Hit Robots 254 | 3 24 9 . 7 64 69 78 Core Hits 151 | 2 14 18 . 2 39 40 36 Critical Hits 2 | . . . . 1 . . 1 Critical Kills . | . . . . . . . . Critical Parts Destroyed 2 | . . . . 1 . . 1 Melee Attacks . | . . . . . . . . Impact . | . . . . . . . . Slashing . | . . . . . . . . Piercing . | . . . . . . . . Sneak Attacks . | . . . . . . . . Combat Hostiles . | . . . . . . . . Follow-up Attacks . | . . . . . . . . Damage Inflicted 5890 | 36 252 534 . 105 1416 2102 1445 Guns 2527 | 36 252 47 . 27 690 584 891 Cannons 1628 | . . 110 . 78 298 671 471 Explosions 1727 | . . 377 . . 420 847 83 Melee . | . . . . . . . . Ramming 8 | . . . . . 8 . . Kinetic 2288 | 36 252 157 . 105 298 549 891 Thermal 1867 | . . . . . 690 706 471 Explosive 1727 | . . 377 . . 420 847 83 Electromagnetic . | . . . . . . . . Impact . | . . . . . . . . Slashing . | . . . . . . . . Piercing . | . . . . . . . . Highest Corruption 4 | . 1 1 1 1 . 4 4 Average Corruption 3 | . 1 1 1 1 . 4 4 Corruption Purged . | . . . . . . . . Effects 56 | . 1 2 1 2 . 22 28 Message Errors 15 | . . 1 1 2 . 6 5 Matter Fused 11 | . . . . . . 4 7 Heat Flow Errors 9 | . . . . . . 4 5 Energy Discharges 10 | . . 1 . . . 5 4 Parts Rejected 1 | . . . . . . . 1 Data Loss (minor) 1 | . . . . . . . 1 Targeting Errors 7 | . 1 . . . . 3 3 Weapon Failures 2 | . . . . . . . 2 Overload Shots . | . . . . . . . . Overflow Damage 25 | . . 3 . . 3 19 . Projectiles 3 | . . . . . 3 . . Explosions 22 | . . 3 . . . 19 . Melee . | . . . . . . . . Knockbacks 6 | . . 2 . 2 2 . . Impact . | . . . . . . . . Kinetic 6 | . . 2 . 2 2 . . Secondary . | . . . . . . . . Self-Inflicted Damage 114 | . . 15 . . 4 95 . Shots 5 | . . 1 . . . 4 . Rammed 2 | . 1 . . . 1 . . Targets Rammed 2 | . 1 . . . 1 . . Kicked . | . . . . . . . . Crushed . | . . . . . . . . Highest Temperature 342 | . 9 . . . 20 342 266 Average Temperature 87 | . 6 . . . 7 132 63 Received Heat Transfer 1137 | . 54 . . . 297 345 441 Effects 3 | . . . . . . 3 . Energy Bleed 2 | . . . . . . 2 . Damage (minor) 1 | . . . . . . 1 . Siege Activations . | . . . . . . . . Robots Corrupted . | . . . . . . . . Combat Hostiles . | . . . . . . . . Parts Fried . | . . . . . . . . Impact Corruptions . | . . . . . . . . Robots Melted 1 | . . . . . . 1 . Combat Hostiles 1 | . . . . . . 1 . Parts Melted 11 | . . . . . 5 4 2 Heat Transferred 3774 | . . . . . 1517 1517 740 Parts Sabotaged . | . . . . . . . . Parts Stolen . | . . . . . . . . Parts Stripped . | . . . . . . . . Power Chain Reactions . | . . . . . . . . Missiles Intercepted . | . . . . . . . . Alert | -11 -10 -10 -10 -9 -8 -8 -8 ------- Run | Scr Mat Min Exi Min Mat Gar Mat Peak Influence 611 | 5 172 136 . 30 203 611 394 Average Influence 277 | 1 108 128 . 2 116 477 297 Maximum Alert Level 2 | . . . . . 1 2 1 Low Security (%) 45 | 100 100 100 . 100 98 12 13 Level 1 28 | . . . . . 1 7 86 Level 2 25 | . . . . . . 80 . Level 3 . | . . . . . . . . Level 4 . | . . . . . . . . Level 5 . | . . . . . . . . High Security . | . . . . . . . . Max Security . | . . . . . . . . Squads Dispatched 3 | . . . . . 1 . 2 Investigation 1 | . . . . . . . 1 Extermination . | . . . . . . . . Reinforcement 2 | . . . . . 1 . 1 Assault . | . . . . . . . . Garrison . | . . . . . . . . Intercept . | . . . . . . . . Construction Impeded . | . . . . . . . . Haulers Reinforced . | . . . . . . . . Stealth | -11 -10 -10 -10 -9 -8 -8 -8 --------- Run | Scr Mat Min Exi Min Mat Gar Mat Distress Signals 3 | . . . . . 2 . 1 Communications Jammed 28 | . . . . . 28 . . Distress Signals 27 | . . . . . 27 . . Times Spotted 86 | . 8 12 . 1 28 13 24 Peak Tracking Total 8 | . 3 8 . 1 5 4 4 Tactical Retreats 11 | . 1 . . . 8 1 1 Traps | -11 -10 -10 -10 -9 -8 -8 -8 ------- Run | Scr Mat Min Exi Min Mat Gar Mat Traps Triggered 14 | . 1 . . . . 10 3 Indirectly . | . . . . . . . . Trap Hack Attempts . | . . . . . . . . Triggered . | . . . . . . . . Disarmed . | . . . . . . . . Reprogrammed . | . . . . . . . . Reused . | . . . . . . . . Traps Extracted . | . . . . . . . . Installed . | . . . . . . . . Triggered . | . . . . . . . . Machines | -11 -10 -10 -10 -9 -8 -8 -8 ---------- Run | Scr Mat Min Exi Min Mat Gar Mat Machines Disabled 6 | . . . . . . 3 3 Max in Single Turn 1 | . . . . . . 1 1 Garrison Access 1 | . . . . . . . 1 Garrison Relay 2 | . . . . . . 2 . Machines Sabotaged . | . . . . . . . . Garrisons Compromised . | . . . . . . . . Overloaded Fab Kills . | . . . . . . . . Fab Network Shutdowns . | . . . . . . . . Hacking | -11 -10 -10 -10 -9 -8 -8 -8 --------- Run | Scr Mat Min Exi Min Mat Gar Mat Machines Accessed 9 | . 1 . 2 . 3 . 3 Terminals 4 | . . . . . 2 . 2 Fabricators . | . . . . . . . . Repair Stations . | . . . . . . . . Recycling Units 1 | . 1 . . . . . . Scanalyzers . | . . . . . . . . Garrison Access 2 | . . . . . 1 . 1 Total Hacks 40 | . 1 . 24 . 10 . 5 Successful 29 | . 1 . 24 . 2 . 2 Failed 11 | . . . . . 8 . 3 Catastrophic 1 | . . . . . 1 . . Database Lockouts . | . . . . . . . . Manual 6 | . . . 1 . 3 . 2 Terminals 12 | . . . . . 8 . 4 Fabricators . | . . . . . . . . Repair Stations . | . . . . . . . . Recycling Units 1 | . 1 . . . . . . Scanalyzers . | . . . . . . . . Garrison Access 3 | . . . . . 2 . 1 Terminal Hacks 26 | . . . 24 . 1 . 1 Record 23 | . . . 23 . . . . Prototype ID Bank 1 | . . . . . 1 . . Locate Traps 1 | . . . . . . . 1 EX-Prototype ID Bank 1 | . . . 1 . . . . Fabricator Hacks . | . . . . . . . . Repair Station Hacks . | . . . . . . . . Recycling Unit Hacks 1 | . 1 . . . . . . Retrieve Components 1 | . 1 . . . . . . Scanalyzer . | . . . . . . . . Garrison Access Hacks 2 | . . . . . 1 . 1 Unlock Access 1 | . . . . . 1 . . Seal Access 1 | . . . . . . . 1 Unauthorized Hacks 3 | . . . . . 1 . 2 Terminals . | . . . . . . . . Fabricators . | . . . . . . . . Repair Stations . | . . . . . . . . Recycling Units . | . . . . . . . . Scanalyzers . | . . . . . . . . Garrison Access . | . . . . . . . . Data Cores Recovered . | . . . . . . . . Used . | . . . . . . . . Hacking Detections 5 | . . . . . 3 . 2 Full Trace Events . | . . . . . . . . Feedback Events . | . . . . . . . . Feedback Blocked . | . . . . . . . . Robot Schematics Acquired . | . . . . . . . . Robots Built . | . . . . . . . . Matter . | . . . . . . . . Time . | . . . . . . . . Total Robot Build Rating . | . . . . . . . . Part Schematics Acquired . | . . . . . . . . Parts Built . | . . . . . . . . Matter . | . . . . . . . . Time . | . . . . . . . . Total Part Build Rating . | . . . . . . . . Parts Repaired . | . . . . . . . . Time . | . . . . . . . . Parts Recycled . | . . . . . . . . Recycled Matter . | . . . . . . . . Retrieved Matter . | . . . . . . . . Retrieved Components 1 | . 1 . . . . . . Parts Scanalyzed . | . . . . . . . . Part Schematics Acquired . | . . . . . . . . Parts Damaged . | . . . . . . . . Bothacking | -11 -10 -10 -10 -9 -8 -8 -8 ------------ Run | Scr Mat Min Exi Min Mat Gar Mat Used RIF Installer 1 | . . . . . . 1 . Robots Hacked . | . . . . . . . . Non-combat . | . . . . . . . . Combat . | . . . . . . . . Robot Hacks Applied . | . . . . . . . . Relay Couplers Released 9 | . . . . . . 9 . Machine Destruction 9 | . . . . . . 9 . Robots Rewired . | . . . . . . . . Allies Hacked . | . . . . . . . . Hacks Repelled . | . . . . . . . . Allies | -11 -10 -10 -10 -9 -8 -8 -8 -------- Run | Scr Mat Min Exi Min Mat Gar Mat Total Allies 1 | . . . . 1 . . . Largest Group 1 | . . . . 1 1 . . Highest-Rated Group 23 | . . . . 23 23 . . Highest-Rated Ally 23 | . . . . 23 23 . . Total Orders . | . . . . . . . . Ally Attacks . | . . . . . . . . Total Damage . | . . . . . . . . Kills . | . . . . . . . . Allies Corrupted . | . . . . . . . . Allies Melted . | . . . . . . . . Intel | -11 -10 -10 -10 -9 -8 -8 -8 ------- Run | Scr Mat Min Exi Min Mat Gar Mat Robot Analysis Total . | . . . . . . . . Derelict Logs Recovered 1 | . . . . 1 . . . Drone Launches . | . . . . . . . . Drone Recoveries . | . . . . . . . . Exploration | -11 -10 -10 -10 -9 -8 -8 -8 ------------- Run | Scr Mat Min Exi Min Mat Gar Mat Turns Passed 4118 | 63 238 137 338 238 756 1216 1132 Spaces Moved 2240 | 43 138 89 300 149 307 645 569 Core 1 | 1 . . . . . . . Treads 474 | . 3 4 . 9 66 192 200 Legs . | . . . . . . . . Wheels 1765 | 42 135 85 300 140 241 453 369 Hover . | . . . . . . . . Flight . | . . . . . . . . Fastest Speed 50 | 50 100 110 110 120 120 120 130 Average Speed 133 | 98 107 112 111 123 140 140 147 Slowest Speed 220 | 100 180 160 120 180 220 180 180 Overloaded Moves . | . . . . . . . . Propulsion Burnouts . | . . . . . . . . Robots Hopped . | . . . . . . . . Cave-ins Triggered . | . . . . . . . . Exploration Rate (%) 37 | 4 31 27 71 33 31 57 45 Regions Visited 7 Branch Regions 3 Pre-discovered Areas 2 | . . . 1 . 1 . . Known Exits Taken 2 | . . . . 1 1 . . Unknown Exits Taken 4 | 1 1 1 1 . . . . Scrap Searched . | . . . . . . . . Spaces Dug 13 | . . 10 . . . 3 . Terrain Destroyed 147 | . . 31 . . 16 87 13 Melee . | . . . . . . . . Projectile 4 | . . . . . . . 4 AOE 143 | . . 31 . . 16 87 9 Actions | -11 -10 -10 -10 -9 -8 -8 -8 --------- Run | Scr Mat Min Exi Min Mat Gar Mat Total 2973 | 56 192 105 305 191 539 838 747 Wait 285 | . 7 . . 37 149 23 69 Move 2234 | 42 137 88 299 148 307 644 569 Hop . | . . . . . . . . Pick Up 69 | 6 9 1 3 . 14 21 15 Fast Attach 17 | 6 2 . . . 3 1 5 Attach 20 | . . . . . 3 12 5 Detach 3 | . 1 . . . 1 . 1 Swap 38 | . 5 4 1 . 6 12 10 Drop 33 | . 9 1 2 . 7 3 11 Fire 215 | 2 21 11 . 6 48 65 62 Melee . | . . . . . . . . Ram 1 | . . . . . 1 . . Kick . | . . . . . . . . Crush 1 | . 1 . . . . . . Escape Stasis 57 | . . . . . . 57 . Rewire . | . . . . . . . . Trap . | . . . . . . . . Miscellaneous . | . . . . . . . . Route ------- -11/Scrapyard -10/Materials -10/Mines -10/Exiles (discovered 2 exits: [*Min x2]) -9/Mines (discovered 2 exits: *Mat x2) -8/Materials -8/Garrison (discovered 2 exits: *Mat x2) -8/Materials (discovered 1 exit: [*Fac]) History --------- Turn | Location | Event 21 | -11/Scrapyard | Discovered new exit (range 15) 64 | -11/Scrapyard | Entered Materials 238 | -10/Materials | Discovered new exit (range 12) 302 | -10/Materials | Entered Mines 323 | -10/Mines | Build established: Mutant 353 | -10/Mines | Received a Rocket Launcher from a helpful Derelict 366 | -10/Mines | Assembled infested the area 371 | -10/Mines | Assisted by a Guerilla fighting off Assembled 408 | -10/Mines | Destroyed 7 combat bots 434 | -10/Mines | Deemed a non-threat by the Exiles lab entrance 434 | -10/Mines | Discovered new exit (range 5) 439 | -10/Mines | Entered Exiles 454 | -10/Exiles | Discovered new exit (range 16) 466 | -10/Exiles | Met 8R-AWN 486 | -10/Exiles | Met EX-HEX 515 | -10/Exiles | Met EX-BIN 529 | -10/Exiles | Aligned with FarCom system 530 | -10/Exiles | Given EX-Vault access code 555 | -10/Exiles | Opened EX-Vault 562 | -10/Exiles | Found Modified TNC 585 | -10/Exiles | Warned to stay clear of 0b10 Research branches 615 | -10/Exiles | Met EX-DEC 624 | -10/Exiles | Learned location of Zion (-7) 763 | -10/Exiles | Discovered new exit (range 15) 777 | -10/Exiles | Left Exiles lab with Modified TNC 777 | -10/Exiles | Entered Mines 797 | -9/Mines | Met a Derelict bent on vengeance 859 | -9/Mines | Identified exit to Materials 983 | -9/Mines | Discovered exit to Materials (range 9) 998 | -9/Mines | Escorted by a lone wolf Derelict 1015 | -9/Mines | Entered Materials 1015 | -8/Materials | Accompanied by 1 ally 1015 | -8/Materials | Evolved 4 slots: Utility x4 1423 | -8/Materials | Build established: Hauler-Mutant 1771 | -8/Materials | Identified exit to Garrison 1771 | -8/Materials | Entered Garrison 1852 | -8/Garrison | Triggered checkpoint 2051 | -8/Garrison | Triggered checkpoint 2146 | -8/Garrison | Discovered new exit (range 10) 2196 | -8/Garrison | Triggered checkpoint 2277 | -8/Garrison | Discovered new exit (range 10) 2295 | -8/Garrison | Installed Relay Interface Framework 2356 | -8/Garrison | Triggered checkpoint 2402 | -8/Garrison | Garrison Relay disabled 2566 | -8/Garrison | Spotted B-75 Beast 2578 | -8/Garrison | Core integrity fell below 50% 2618 | -8/Garrison | Destroyed B-75 Beast 2639 | -8/Garrison | Lost 8 parts (1p1n1u5w) 2793 | -8/Garrison | Garrison Relay disabled 2987 | -8/Garrison | Entered Materials 3412 | -8/Materials | Build established: Bothacker-Mutant 3556 | -8/Materials | Core integrity fell below 20% 4101 | -8/Materials | Discovered new exit (range 10) 4119 | -8/Materials | Destroyed by G-47 Trooper with Particle Gun Last Messages --------------- 04074_ System corrupted: Hvy. Assault Rifle targeting data glitched. 04074_ Destroyed Particle Gun. 04077_ G-47 Trooper destroyed. 04078_ Acquired 44 matter. 04080_ Dropped Transmission Jammer. 04082_ Acquired Lgt. Armor Plating. 04083_ Acquired 52 matter. 04084_ System corrupted: Energy discharge (-28). 04084_ Dropped Relay Coupler [Specialist]. 04086_ Acquired Hammer. 04101_ EXIT=FOUND 04102_ K-01 Serf cleans the Pressure Siphon. 04106_ Triggered Alarm Trap. 04106_ An alarm sounds. 04106_ ALERT: Alarm triggered, dispatching investigation squad. 04107_ System corrupted: Matter fused (-8). 04107_ Connecting with Terminal... 04107_ Terminal disabled. 04109_ K-01 Serf cleans the Pressure Siphon. 04113_ K-01 Serf collects debris. Map ----- +----------------------------------------------------+ | ?????????????????????????????????????????????????? | | ###?????#######????????????????????????????????#?# | | = ####### #########################??????""#?# | | ! !!% #???? """#?# | | *[ %[%*!*! #?? """#?# | | ! == % # #?# | | ####### * ########## ########## + #?# | | ###??######/#######????###??#####?# # #?# | | ????# % #???? ?? ??# ##########?# | | "????# """ """ #???# ??# # #?# | | T"???# """ """ [ #???# ?w# # """"" ### | | ???# """ """ #???# # # """"" + | | !! ??# #???# # # """"" ### | | ! ??###+###########??# + + #?? | | ####???# # / #??# # # """"" #?? | | ???????# # #??######+###### # """"" #?? | | ??????## # ! #?????# # """"" + | | ??????# # """ #?????# # ### | | ??????# + """"" #?????# "o """" ####+#####?? | | ??????# # """"" #?????# k """" #??# #????? | | ??????# # """"" #?????# " """" #??# #????? | | #+##### # """ #?????# #??# #?????? | | ################# #??# #?????? | | / ! # """" #??# #?????? | | ######+##### # """" #??# #?????? | | #### ## """ """ """ @ """" #### ##????? | | # ## """ """ """ # ## #????? | | # """ ## """ """ """ # ##^ #????? | | = # """ ##! ! * ## ########## #????? | | # """ #################gg ########## #????? | | "" # #???????????????? # = ## #????? | | "" ########???????????????? # ## #????? | | "" ???????????????????????? # """ ## ##???? | | ???????????????????????? < # """"" # #???? | | ###???????????????????????? # """"" # ##### | | ???????????????????????????#### """"" + | | ??????????????????????????????# """ # | | ??????????????????????????????# # ##### | | ??????????????????????????????# # #???? | | ??????????????????????????????# ########???? | | ??????????????????????????????# #??????????? | | ??????????????????????????????#########??????????? | | | | | | | | | | | | | | | | | +----------------------------------------------------+ Best States ------------- Heat Dissipation 53 Energy Generation 14 Energy Capacity 265 Matter Stores 300 Matter Capacity 500 Sight Range 18 Terrain Scan Density 10 Jamming Range 8 Armor Coverage 300 Resistance: TH 10 Evasion (%) 40 Core Analysis 6 Recoil Reduction 2 Item Schematics ----------------- None Robot Schematics ------------------ None Fabricated ------------ Nothing Alien Tech Used ----------------- None Achievements -------------- None Challenges ------------ None Game ------ Seed ProcessingAssaultBox Manual? 0 Play Time 00:35:06 Cumulative 421.0 hours Start 2019.12.16 @ 19:27:30 End 2019.12.16 @ 20:01:43 Sessions 1 Manual Loads 0 Difficulty Rogue Special Mode None Game No. 112 Rogue 112 Adventurer 0 Explorer 0 Win Type - Total 32 Types 18/2/5/2/1/1/3 Lore% 95 Gallery% 97 Achievement% 89 Wizard Run 0 Options --------- ASCII 1 Keyboard 1 Movement Vi Keybinds 0 Fullscreen 1 Font 12/Smallcaps Map View 83x54 Tactical HUD 1 Map Filters NONE Filters NONE Steam 0 RUN: 1ad0d471-57c9-4ea9-9bfc-6848fd9cf70e